Cogmind - Beta 15 @@@ ROGUE MODE // 2025.07.05 @ 16:04:38 Player: Rockstar Result: Destroyed by P-80 Master with Gamma Rifle Performance ------------- Evolutions (7) 3500 Regions Visited (12) 2400 Robots Destroyed (59) 295 Value Destroyed (2983) 2983 Prototype IDs (24) 480 Alien Tech Used (0) 0 Bonus (248) 248 TOTAL SCORE: 9906 Bonus ------- Follower Combat Kills 200 Aligned with FarCom 300 Friendly Fire -252 Cogmind --------- Core Integrity 0/1300 Matter 77/300 Energy 86/100 System Corruption 28% Temperature Cool (81) Movement Core (50) Location -3/Research Parts ------- > --- POWER (3) -------- (None) > --- PROPULSION (4) --- (None) > --- UTILITY (10) ----- Advanced Signal Interpreter Core Analyzer Improved Dynamic Insulation System > --- WEAPON (4) ------- (None) > --- INVENTORY (5) ---- (None) Peak State ------------ > --- POWER ------------ Neutrino Core Neutrino Core Neutrino Core > --- PROPULSION ------- Improved Titanium Leg Flexi-carbon Leg Flexi-carbon Leg Myomer Leg > --- UTILITY ---------- Large Storage Unit Advanced Sensor Array Improved Targeting Computer Core Analyzer Advanced Reaction Control System Improved Medium Armor Plating Improved Medium Armor Plating Advanced Force Field Advanced Drone Bay > --- WEAPON ----------- Heavy Mass Driver Smartbomb Launcher > --- INVENTORY -------- Improved Deuterium Engine Fission Core Neutrino Core Improved Titanium Leg Improved Titanium Leg Flexi-carbon Leg Flexi-carbon Leg Compact Battery Advanced Signal Interpreter Improved Transmission Jammer EM Disruption Field Long-range Tractor Beam HERF Cannon [Rating: 116] Favorites ----------- Power Neutrino Core Engine Ion Engine Power Core Neutrino Core Propulsion Improved Titanium Leg Leg Improved Titanium Leg Wheel Wheel Utility Large Storage Unit Device Transmission Jammer Storage Large Storage Unit Processor Improved Targeting Computer Protection Heavy Armor Plating Weapon AWS/Autocannon Energy Gun Medium Laser Energy Cannon HERF Cannon Ballistic Cannon AWS/Autocannon Launcher Smartbomb Launcher Build | -11 -10 -10 -10 -9 -8 -7 -6 -5 -4 -4 -4 -3 ------- Run | Yrd Mat Min Exi Min Mat Fac Fac Fac Fac Upp Upp Res Slots Evolved 14 | . . . . . 4 2 2 2 2 . . 2 Power 2 | . . . . . 1 . . . . . . 1 Propulsion 2 | . . . . . 1 . 1 . . . . . Utility 8 | . . . . . 1 2 1 2 2 . . . Weapon 2 | . . . . . 1 . . . . . . 1 Parts Attached 56 | 6 2 . 1 1 10 3 3 4 5 3 11 7 Power 11 | 1 . . . . 3 . 2 2 . . 1 2 Engine 4 | 1 . . . . 2 . . . . . . 1 Core 7 | . . . . . 1 . 2 2 . . 1 1 Reactor . | . . . . . . . . . . . . . Propulsion 12 | 2 . . . . 4 . 1 . 1 . 3 1 Treads . | . . . . . . . . . . . . . Leg 10 | . . . . . 4 . 1 . 1 . 3 1 Wheel 2 | 2 . . . . . . . . . . . . Hover . | . . . . . . . . . . . . . Flight . | . . . . . . . . . . . . . Utility 26 | 1 1 . 1 1 2 3 . 2 4 3 5 3 Device 13 | . 1 . . . 1 1 . 1 2 2 3 2 Storage 3 | 1 . . 1 . . . . . . . 1 . Processor 5 | . . . . 1 . 1 . . 1 . 1 1 Hackware . | . . . . . . . . . . . . . Protection 5 | . . . . . 1 1 . 1 1 1 . . Artifact . | . . . . . . . . . . . . . Weapon 7 | 2 1 . . . 1 . . . . . 2 1 Energy Gun 2 | 2 . . . . . . . . . . . . Energy Cannon 1 | . . . . . . . . . . . 1 . Ballistic Gun . | . . . . . . . . . . . . . Ballistic Cannon 2 | . . . . . 1 . . . . . 1 . Launcher 2 | . 1 . . . . . . . . . . 1 Special Weapon . | . . . . . . . . . . . . . Impact Weapon . | . . . . . . . . . . . . . Slashing Weapon . | . . . . . . . . . . . . . Piercing Weapon . | . . . . . . . . . . . . . Special Melee Weapon . | . . . . . . . . . . . . . Unidentified Prototypes 1 | . . . . . 1 . . . . . . . Parts Lost 31 | . . . . . . . . . . 1 3 27 Power 5 | . . . . . . . . . . . . 5 Propulsion 7 | . . . . . . . . . . . . 7 Utility 16 | . . . . . . . . . . 1 3 12 Weapon 3 | . . . . . . . . . . . . 3 Highest Loss Streak 26 | . . . . . . . . . . 1 3 26 To Critical Strikes . | . . . . . . . . . . . . . Average Backups 10 | 1 7 8 7 9 11 11 10 10 9 9 9 9 Power 2 | . 1 1 1 1 1 2 3 3 3 3 3 2 Propulsion 1 | 1 1 1 1 1 . 1 . . . 2 2 3 Utility 3 | . 2 4 4 5 6 4 4 3 1 1 1 2 Weapon 2 | . 2 2 1 1 2 3 3 4 4 3 1 . Tool/Special . | . . . . . . . . . . . . . Unused Backups 26 | . 3 . . 1 5 4 . 6 5 . . 2 Power 4 | . . . . . . 1 . 3 . . . . Propulsion 3 | . 1 . . . . . . . . . . 2 Utility 9 | . 1 . . . 4 3 . . 1 . . . Weapon 10 | . 1 . . 1 1 . . 3 4 . . . Tool/Special . | . . . . . . . . . . . . . Average Slot Usage (%) 83 | . 97 100 100 100 70 75 79 81 83 84 87 81 Engine 4 | . 14 14 14 14 10 7 2 . . . . . Core 8 | . . . . . 7 7 9 11 10 10 10 12 Leg 18 | . . . . . 19 23 26 23 21 21 21 17 Wheel 4 | . 28 28 28 28 6 . . . . . . . Device 12 | . 12 14 14 2 5 5 6 10 14 15 23 17 Storage 7 | . 14 14 14 14 9 7 6 5 5 5 6 5 Processor 6 | . . . . 12 . 6 6 5 10 10 7 11 Protection 9 | . . . . . 2 9 12 17 15 14 9 7 Energy Gun 3 | . 26 18 28 28 . . . . . . . . Ballistic Cannon 4 | . . . . . 8 7 6 5 5 5 5 2 Peak Build Rating 116 | 6 7 7 13 14 65 68 78 86 98 107 107 116 Average Rating 74 | 4 6 7 7 13 57 67 76 84 95 98 100 101 On Entrance 49 | . 6 7 7 13 14 61 68 78 86 98 107 103 Naked Turns . | . . . . . . . . . . . . . Heaviest Build 150 | 14 16 16 30 30 109 117 123 134 135 150 150 134 Greatest Support 85 | 20 20 20 20 20 60 60 80 80 80 80 85 85 Greatest Overweight (x) 6 | 1 . . 1 1 4 1 1 1 1 1 1 6 Average Overweight (x) . | . . . . 1 2 1 1 1 1 1 1 . Largest Inventory Capacity 15 | 8 8 8 15 15 15 15 15 15 15 15 15 15 Average Capacity 14 | 7 8 8 9 15 15 15 15 15 15 15 15 14 Most Carried 15 | 4 8 8 15 15 15 15 15 15 15 15 15 15 Average Carried 12 | 1 7 8 8 14 14 14 13 14 14 14 11 10 Final Capacity 15 | 8 8 8 15 15 15 15 15 15 15 15 15 5 Final Carried 15 | 4 8 8 15 15 15 15 15 15 15 14 15 . Class Distribution -------------------- 29% | Tank 17% | Scavenger-Tank 17% | Infiltrator-Tank 15% | Mutant 10% | Skirmisher 8% | Gunner Dominant Class ---------------- Mutant | -10/Materials Mutant | -10/Mines Mutant | -10/Exiles Mutant | -9/Mines Skirmisher | -8/Materials Gunner | -7/Factory Tank | -6/Factory Tank | -5/Factory Infiltrator-Tank | -4/Factory Infiltrator-Tank | -4/Upper Caves Scavenger-Tank | -4/Upper Caves Scavenger-Tank | -3/Research Resources | -11 -10 -10 -10 -9 -8 -7 -6 -5 -4 -4 -4 -3 ----------- Run | Yrd Mat Min Exi Min Mat Fac Fac Fac Fac Upp Upp Res Matter Collected 1435 | 198 2 36 . . 460 30 40 278 46 . 251 94 Remotely 27 | . . . . . . . . . . . . 27 Salvage Created 2133 | . 93 69 . . 220 164 97 510 115 447 223 195 Parts 86 | . 5 3 . . 8 13 3 28 3 11 9 3 Haulers Intercepted 1 | . . . . . . 1 . . . . . . Recyclers Shooed 1 | . . . . . . . 1 . . . . . Parts Field Recycled . | . . . . . . . . . . . . . Retrieved Matter . | . . . . . . . . . . . . . Parts Self-Destructed 20 | . . . . . . . . . . 11 9 . Prevented 4 | . . . . . . . . . . . 4 . Kills | -11 -10 -10 -10 -9 -8 -7 -6 -5 -4 -4 -4 -3 ------- Run | Yrd Mat Min Exi Min Mat Fac Fac Fac Fac Upp Upp Res Combat Hostiles Destroyed 55 | . 4 5 . . 5 5 2 13 2 8 4 7 Guns 4 | . 1 3 . . . . . . . . . . Cannons 41 | . . . . . 4 5 2 13 2 8 4 3 AOE 8 | . 3 2 . . . . . . . . . 3 Classes Destroyed 11 | . 2 1 . . 1 3 . 2 . 1 1 . Builder 1 | . 1 . . . . . . . . . . . Hauler 1 | . . . . . . 1 . . . . . . Watcher 2 | . . . . . 2 . . . . . . . Swarmer 10 | . . 3 . . . 3 . 1 . . . 3 Grunt 30 | . 4 2 . . 5 . 2 5 2 7 3 . Brawler 1 | . . . . . . . . . . . 1 . Duelist 1 | . . . . . . . . 1 . . . . Sentry 2 | . . . . . . . . . . 1 . 1 Hunter 3 | . . . . . . . . 3 . . . . Programmer 7 | . . . . . . 1 . 3 . . . 3 Heavy 1 | . . . . . . 1 . . . . . . Best Kill Streak 4 | . 4 3 . . 4 2 2 3 2 2 2 3 Combat Bots Only 3 | . 3 3 . . 3 2 2 3 2 2 2 3 Max Kills in Single Turn 2 | . 2 2 . . 1 1 1 1 1 1 1 2 Gunslinging . | . . . . . . . . . . . . . Exploded 2 | . 1 1 . . . . . . . . . 2 Melee . | . . . . . . . . . . . . . Uniques/NPCs Destroyed . | . . . . . . . . . . . . . Combat | -11 -10 -10 -10 -9 -8 -7 -6 -5 -4 -4 -4 -3 -------- Run | Yrd Mat Min Exi Min Mat Fac Fac Fac Fac Upp Upp Res Hostile Shots Fired 504 | . 15 15 . . 4 7 18 28 . 34 43 340 Missed 182 | . 5 6 . . 2 2 10 9 . 14 12 122 Hits 322 | . 10 9 . . 2 5 8 19 . 20 31 218 Melee 2 | . . . . . . . . . . . 2 . Projectile 320 | . 10 9 . . 2 5 8 19 . 20 29 218 Critical Strikes 12 | . . . . . . . . 1 . 1 3 7 Actively Blocked 1 | . . . . . . . . 1 . . . . Damage Taken 5788 | . 123 101 . . 121 71 167 313 . 426 452 4014 Core 1478 | . . 68 . . 8 14 . 12 . 57 11 1308 Absorbed by Shields 1368 | . . . . . . . . . . . 253 1115 Redirected to Shielding 51 | . . . . . . . . 31 . 20 . . Core Remaining (%) 94 | 100 . . . 72 98 98 100 98 . . 94 . Volleys Fired 50 | . 7 7 . . . . . . . . 7 29 Largest 2 | . 2 2 . . . . . . . . 2 1 Hottest 153 | . 100 80 . . . . . . . . 153 88 Shots Fired 156 | . 14 14 . . 8 9 12 30 5 21 14 29 Gun 15 | . 8 7 . . . . . . . . . . Cannon 122 | . . . . . 8 9 12 30 5 21 14 23 Launcher 19 | . 6 7 . . . . . . . . . 6 Special . | . . . . . . . . . . . . . Kinetic 113 | . . . . . 8 9 12 30 5 21 11 17 Thermal 15 | . 8 7 . . . . . . . . . . Explosive 19 | . 6 7 . . . . . . . . . 6 Electromagnetic 9 | . . . . . . . . . . . 3 6 Robot Hit Streak 21 | . 3 3 . . 9 12 6 7 12 21 5 7 Robot Miss Streak 4 | . 2 2 . . . 2 3 2 . 2 3 4 Penetration Max . | . . . . . . . . . . . . . Secondary Targets . | . . . . . . . . . . . . . Autonomous 90 | . . . . . 8 9 12 30 5 21 5 . Shots Hit Robots 108 | . 8 7 . . 8 6 8 22 5 18 9 17 Core Hits 76 | . 10 9 . . 6 6 4 12 2 8 5 14 Critical Kills . | . . . . . . . . . . . . . Critical Parts Destroyed . | . . . . . . . . . . . . . Critical Strikes 8 | . . . . . . 1 . 2 1 1 2 1 Blast 8 | . . . . . . 1 . 2 1 1 2 1 Melee Attacks . | . . . . . . . . . . . . . Impact . | . . . . . . . . . . . . . Slashing . | . . . . . . . . . . . . . Piercing . | . . . . . . . . . . . . . Sneak Attacks . | . . . . . . . . . . . . . Combat Hostiles . | . . . . . . . . . . . . . Follow-up Attacks . | . . . . . . . . . . . . . Damage Inflicted 8956 | . 515 330 . . 726 681 743 1864 499 1428 666 1504 Guns 103 | . 52 51 . . . . . . . . . . Cannons 7367 | . . . . . 687 681 737 1802 437 1428 666 929 Explosions 1256 | . 463 279 . . . . . . . . . 514 Melee . | . . . . . . . . . . . . . Ramming 230 | . . . . . 39 . 6 62 62 . . 61 Kinetic 7250 | . . . . . 687 681 737 1802 437 1428 586 892 Thermal 103 | . 52 51 . . . . . . . . . . Explosive 1256 | . 463 279 . . . . . . . . . 514 Electromagnetic 117 | . . . . . . . . . . . 80 37 Impact . | . . . . . . . . . . . . . Slashing . | . . . . . . . . . . . . . Piercing . | . . . . . . . . . . . . . Highest Corruption 28 | . . . . . . . . 4 . . 7 28 Average Corruption 6 | . . . . . . . . 3 . . 6 7 Corruption Purged . | . . . . . . . . . . . . . Corruption Blocked . | . . . . . . . . . . . . . Effects 35 | . . . . . . . . 2 . . 20 13 Message Errors 6 | . . . . . . . . 1 . . 3 2 Matter Fused 7 | . . . . . . . . . . . 5 2 Heat Flow Errors 4 | . . . . . . . . . . . 2 2 Energy Discharges 3 | . . . . . . . . . . . 2 1 Parts Rejected 2 | . . . . . . . . . . . . 2 Parts Fused 1 | . . . . . . . . . . . 1 . Data Loss (minor) 6 | . . . . . . . . . . . 3 3 Data Loss (major) 3 | . . . . . . . . . . . 2 1 Alerts 3 | . . . . . . . . 1 . . 2 . Overload Shots . | . . . . . . . . . . . . . Overflow Damage 823 | . 25 4 . . 84 53 116 149 16 152 29 195 Projectiles 788 | . . . . . 78 53 116 149 16 152 29 195 Explosions 29 | . 25 4 . . . . . . . . . . Melee 6 | . . . . . 6 . . . . . . . Knockbacks 37 | . . . . . 3 2 3 9 3 6 1 10 Impact 3 | . . . . . . . . . 1 . . 2 Kinetic 30 | . . . . . 2 2 3 8 2 5 1 7 Secondary 4 | . . . . . 1 . . 1 . 1 . 1 Self-Inflicted Damage 17 | . . . . . 8 . . . . . . 9 Shots . | . . . . . . . . . . . . . Rammed 4 | . . . . . 2 . . . . . . 2 Targets Rammed 21 | . . . . . 3 . 3 3 3 . . 9 Kicked 17 | . . . . . 1 . 3 3 3 . . 7 Crushed . | . . . . . . . . . . . . . Highest Temperature 270 | . 177 85 . . . . 12 . . 13 270 262 Average Temperature 80 | . 87 40 . . . . 5 . . 9 92 86 Received Heat Transfer 541 | . 69 42 . . 18 . 36 27 . 144 113 92 Siege Activations . | . . . . . . . . . . . . . Martial Activations . | . . . . . . . . . . . . . Shielding Activations . | . . . . . . . . . . . . . Robots Disrupted . | . . . . . . . . . . . . . Combat Hostiles . | . . . . . . . . . . . . . Robots Corrupted 1 | . . . . . 1 . . . . . . . Combat Hostiles 1 | . . . . . 1 . . . . . . . Parts Fried 2 | . . . . . 2 . . . . . . . Impact Corruptions 3 | . . . . . 2 . . . . . . 1 Robots Melted . | . . . . . . . . . . . . . Combat Hostiles . | . . . . . . . . . . . . . Parts Melted 7 | . . 1 . . . 1 . . 1 . . 4 Heat Transferred 296 | . 148 148 . . . . . . . . . . Parts Sabotaged . | . . . . . . . . . . . . . Parts Stolen . | . . . . . . . . . . . . . Parts Stripped . | . . . . . . . . . . . . . Power Chain Reactions . | . . . . . . . . . . . . . Alert | -11 -10 -10 -10 -9 -8 -7 -6 -5 -4 -4 -4 -3 ------- Run | Yrd Mat Min Exi Min Mat Fac Fac Fac Fac Upp Upp Res Maximum Alert Level . | . . . . . . . . . . . . . Low Security (%) 100 | 100 100 100 . 100 100 100 100 100 100 . . 100 Level 1 . | . . . . . . . . . . . . . Level 2 . | . . . . . . . . . . . . . Level 3 . | . . . . . . . . . . . . . Level 4 . | . . . . . . . . . . . . . Level 5 . | . . . . . . . . . . . . . High Security . | . . . . . . . . . . . . . Max Security . | . . . . . . . . . . . . . Peak Influence 137 | . 97 135 . . 74 43 41 137 45 . . 114 Initial 45 | . . 37 . . . . 11 . 45 . . 28 Average 27 | . 20 101 . . 10 7 3 56 8 . . 43 Influence Increases 1791 | . 141 158 . . 143 138 43 371 40 170 222 365 Destroy 0b10 Robot/C 1180 | . 80 100 . . 100 100 40 260 40 160 160 140 Destroy 0b10 Robot/NC 20 | . 5 . . . 10 5 . . . . . . Destroy Leader 206 | . 10 20 . . 24 32 . 50 . 10 20 40 Allied During Kill 48 | . . . . . 6 . . . . . 42 . Successful Hack 17 | . 14 . . . 3 . . . . . . . Disable Machine 15 | . . . . . . . . . . . . 15 Destroy Structure 215 | . 17 38 . . . 1 3 16 . . . 140 Lose Combat Pursuer 90 | . 15 . . . . . . 45 . . . 30 Influence Decreases 1791 | . 44 150 105 . 143 115 66 278 133 148 201 408 Entered New Map 245 | . . 60 105 . . . 12 . 48 . 5 15 Time Decay 1401 | . 44 90 . . 123 115 54 278 85 138 186 288 Lost Part 125 | . . . . . . . . . . 10 10 105 Lost Ally 20 | . . . . . 20 . . . . . . . Squads Dispatched 24 | . . . . . 4 8 1 4 5 . . 2 Investigation 1 | . . . . . 1 . . . . . . . Extermination 5 | . . . . . . 2 . 1 1 . . 1 Reinforcement 8 | . . . . . . 2 1 3 1 . . 1 Assault 2 | . . . . . 2 . . . . . . . Garrison 8 | . . . . . 1 4 . . 3 . . . Intercept . | . . . . . . . . . . . . . Searches Triggered . | . . . . . . . . . . . . . Construction Impeded . | . . . . . . . . . . . . . Haulers Reinforced . | . . . . . . . . . . . . . Active Scanning Responses . | . . . . . . . . . . . . . Cargo Convoy Interrupts . | . . . . . . . . . . . . . Stealth | -11 -10 -10 -10 -9 -8 -7 -6 -5 -4 -4 -4 -3 --------- Run | Yrd Mat Min Exi Min Mat Fac Fac Fac Fac Upp Upp Res Distress Signals 3 | . . . . . . . 2 . . . . 1 Communications Jammed 6 | . . . . . . . 2 1 . . . 3 Distress Signals 6 | . . . . . . . 2 1 . . . 3 Times Spotted 103 | . 7 5 . . 7 8 12 19 5 7 8 25 Peak Tracking Total 11 | . 5 3 . . 3 5 3 3 2 4 4 11 Tactical Retreats 5 | . 1 . . . . . . 2 . . . 2 Traps | -11 -10 -10 -10 -9 -8 -7 -6 -5 -4 -4 -4 -3 ------- Run | Yrd Mat Min Exi Min Mat Fac Fac Fac Fac Upp Upp Res Traps Triggered 3 | . . . . . 1 . . 2 . . . . Indirectly . | . . . . . . . . . . . . . Trap Hack Attempts . | . . . . . . . . . . . . . Triggered . | . . . . . . . . . . . . . Disarmed . | . . . . . . . . . . . . . Reprogrammed . | . . . . . . . . . . . . . Reused . | . . . . . . . . . . . . . Traps Extracted . | . . . . . . . . . . . . . Installed . | . . . . . . . . . . . . . Triggered . | . . . . . . . . . . . . . Machines | -11 -10 -10 -10 -9 -8 -7 -6 -5 -4 -4 -4 -3 ---------- Run | Yrd Mat Min Exi Min Mat Fac Fac Fac Fac Upp Upp Res Machines Disabled 2 | . 1 . . . . . . . . . . 1 Max in Single Turn 1 | . 1 . . . . . . . . . . 1 Garrison Access 1 | . . . . . 1 . . . . . . . Machines Repaired . | . . . . . . . . . . . . . Machines Dismantled . | . . . . . . . . . . . . . Machines Sabotaged . | . . . . . . . . . . . . . Overloaded Fab Kills . | . . . . . . . . . . . . . Hacking | -11 -10 -10 -10 -9 -8 -7 -6 -5 -4 -4 -4 -3 --------- Run | Yrd Mat Min Exi Min Mat Fac Fac Fac Fac Upp Upp Res Machines Accessed 12 | . 3 1 1 1 3 . . . . 1 . 2 Terminals 9 | . 2 1 . . 3 . . . . 1 . 2 Fabricators . | . . . . . . . . . . . . . Repair Stations . | . . . . . . . . . . . . . Recycling Units 1 | . 1 . . . . . . . . . . . Scanalyzers . | . . . . . . . . . . . . . Garrison Access . | . . . . . . . . . . . . . Total Hacks 23 | . 8 2 1 1 7 . . . . 1 . 3 Successful 11 | . 3 1 1 1 2 . . . . 1 . 2 Failed 12 | . 5 1 . . 5 . . . . . . 1 Catastrophic 3 | . 2 . . . 1 . . . . . . . Database Lockouts . | . . . . . . . . . . . . . Manual 13 | . 5 2 1 . 3 . . . . 1 . 1 Terminals 18 | . 5 2 . . 7 . . . . 1 . 3 Fabricators . | . . . . . . . . . . . . . Repair Stations . | . . . . . . . . . . . . . Recycling Units 3 | . 3 . . . . . . . . . . . Scanalyzers . | . . . . . . . . . . . . . Garrison Access . | . . . . . . . . . . . . . Terminal Hacks 7 | . 1 . 1 1 1 . . . . 1 . 2 Record 2 | . . . . . . . . . . 1 . 1 Open Door 1 | . . . . 1 . . . . . . . . Open DSF 1 | . . . . . . . . . . . . 1 Branch Access Points 1 | . 1 . . . . . . . . . . . Recall Reinforcements 1 | . . . . . 1 . . . . . . . Proto ID Catalog 1 | . . . 1 . . . . . . . . . Fabricator Hacks . | . . . . . . . . . . . . . Repair Station Hacks . | . . . . . . . . . . . . . Recycling Unit Hacks . | . . . . . . . . . . . . . Scanalyzer . | . . . . . . . . . . . . . Garrison Access Hacks . | . . . . . . . . . . . . . Unauthorized Hacks 4 | . 2 1 . . 1 . . . . . . . Terminals 4 | . 2 1 . . 1 . . . . . . . Track 3 | . 1 1 . . 1 . . . . . . . Assimilate 1 | . 1 . . . . . . . . . . . Fabricators . | . . . . . . . . . . . . . Repair Stations . | . . . . . . . . . . . . . Recycling Units . | . . . . . . . . . . . . . Scanalyzers . | . . . . . . . . . . . . . Garrison Access . | . . . . . . . . . . . . . Data Cores Recovered . | . . . . . . . . . . . . . Used . | . . . . . . . . . . . . . Hacking Detections 9 | . 3 1 . . 3 . . . . 1 . 1 Full Trace Events . | . . . . . . . . . . . . . Feedback Events . | . . . . . . . . . . . . . Feedback Blocked . | . . . . . . . . . . . . . Robot Schematics Acquired . | . . . . . . . . . . . . . Robots Built . | . . . . . . . . . . . . . Authchips . | . . . . . . . . . . . . . Time . | . . . . . . . . . . . . . Total Robot Build Rating . | . . . . . . . . . . . . . Part Schematics Acquired . | . . . . . . . . . . . . . Parts Built . | . . . . . . . . . . . . . Authchips . | . . . . . . . . . . . . . Time . | . . . . . . . . . . . . . Total Part Build Rating . | . . . . . . . . . . . . . Parts Repaired . | . . . . . . . . . . . . . Time . | . . . . . . . . . . . . . Parts Recycled . | . . . . . . . . . . . . . Recycled Matter . | . . . . . . . . . . . . . Retrieved Matter . | . . . . . . . . . . . . . Retrieved Components . | . . . . . . . . . . . . . Parts Scanalyzed . | . . . . . . . . . . . . . Part Schematics Acquired . | . . . . . . . . . . . . . Parts Damaged . | . . . . . . . . . . . . . Bothacking | -11 -10 -10 -10 -9 -8 -7 -6 -5 -4 -4 -4 -3 ------------ Run | Yrd Mat Min Exi Min Mat Fac Fac Fac Fac Upp Upp Res Used RIF Installer . | . . . . . . . . . . . . . Robots Hacked . | . . . . . . . . . . . . . Non-combat . | . . . . . . . . . . . . . Combat . | . . . . . . . . . . . . . Robot Hacks Applied . | . . . . . . . . . . . . . Relay Couplers Released 2 | . . . . . 2 . . . . . . . Machine Destruction 2 | . . . . . 2 . . . . . . . Fabnet Peak Effective % . | . . . . . . . . . . . . . Robots Rewired . | . . . . . . . . . . . . . Allies Hacked . | . . . . . . . . . . . . . Hacks Repelled . | . . . . . . . . . . . . . Allies | -11 -10 -10 -10 -9 -8 -7 -6 -5 -4 -4 -4 -3 -------- Run | Yrd Mat Min Exi Min Mat Fac Fac Fac Fac Upp Upp Res Total Allies 2 | . . . . 2 . . . . . . . . Largest Group 2 | . . . . 2 2 . . . . . . . Highest-Rated Group 45 | . . . . 45 45 . . . . . . . Highest-Rated Ally 31 | . . . . 31 31 . . . . . . . Total Orders 11 | . . . . . 5 . . . . . 2 4 EXPLORE 9 | . . . . . 5 . . . . . 2 2 RETURN 2 | . . . . . . . . . . . . 2 Ally Attacks 34 | . . . . . 19 . . . . . 15 . Total Damage 819 | . . . . . 40 . . . . . 779 . Kills 4 | . . . . . . . . . . . 4 . Allies Corrupted . | . . . . . . . . . . . . . Allies Melted . | . . . . . . . . . . . . . Turrets Deployed 3 | . . . . . . . . . . . 3 . Intel | -11 -10 -10 -10 -9 -8 -7 -6 -5 -4 -4 -4 -3 ------- Run | Yrd Mat Min Exi Min Mat Fac Fac Fac Fac Upp Upp Res Active Infowar (turns) 6209 | . 178 187 635 1 . 615 584 960 459 1091 829 670 Sensors 1897 | . 178 187 635 1 . . . . . . 226 670 Triangulation 1307 | . . . . . . . . . 302 1005 . . Jamming 5052 | . . . . . . 615 584 960 459 1091 829 514 Robot Analysis Total . | . . . . . . . . . . . . . Derelict Logs Recovered 5 | . . 2 . 1 . . . . . 1 1 . Drone Launches 23 | . . . . . 16 . . . . . 2 5 Drone Recoveries 7 | . . . . . . . . . . . 2 5 Exploration | -11 -10 -10 -10 -9 -8 -7 -6 -5 -4 -4 -4 -3 ------------- Run | Yrd Mat Min Exi Min Mat Fac Fac Fac Fac Upp Upp Res Turns Passed 7469 | 55 194 187 635 62 741 827 584 960 459 1091 892 782 Spaces Moved 4359 | 46 185 204 749 59 402 405 279 465 214 551 418 382 Core 55 | 1 . . . . . . . . . . . 54 Treads . | . . . . . . . . . . . . . Legs 2879 | . . . . . 219 405 279 465 214 551 418 328 Wheels 1425 | 45 185 204 749 59 183 . . . . . . . Hover . | . . . . . . . . . . . . . Flight . | . . . . . . . . . . . . . Fastest Speed 50 | 50 80 80 80 95 140 200 200 200 197 197 192 50 Average Speed 161 | 81 80 80 83 95 173 200 200 200 198 197 196 175 Slowest Speed 410 | 95 80 80 95 95 410 200 200 200 200 197 197 350 Overloaded Moves . | . . . . . . . . . . . . . Propulsion Burnouts . | . . . . . . . . . . . . . Robots Hopped . | . . . . . . . . . . . . . Potential Cave-ins . | . . . . . . . . . . . . . Cave-ins Triggered . | . . . . . . . . . . . . . Exploration Rate (%) 36 | 3 29 43 92 20 70 17 10 19 8 82 57 21 Regions Visited 12 Branch Regions 5 Pre-discovered Areas 2 | . . 1 . 1 . . . . . . . . Known Exits Taken 2 | . 1 . . 1 . . . . . . . . Unknown Exits Taken 10 | 1 . 1 1 . 1 1 1 1 1 1 1 . Scrap Searched 5 | . . . . . . . . . . 2 3 . Spaces Dug . | . . . . . . . . . . . . . Terrain Destroyed 181 | . 31 50 . . . 1 3 8 . 4 3 81 Melee . | . . . . . . . . . . . . . Projectile 28 | . . . . . . 1 3 8 . 4 3 9 AOE 153 | . 31 50 . . . . . . . . . 72 Terrain Rammed . | . . . . . . . . . . . . . Walls Destroyed . | . . . . . . . . . . . . . Machines Disabled . | . . . . . . . . . . . . . Actions | -11 -10 -10 -10 -9 -8 -7 -6 -5 -4 -4 -4 -3 --------- Run | Yrd Mat Min Exi Min Mat Fac Fac Fac Fac Upp Upp Res Total 4716 | 60 216 212 757 65 450 426 302 496 247 557 477 451 Wait 100 | 5 12 . . 3 7 3 15 9 12 . 29 5 Move 4347 | 45 184 203 748 58 401 404 278 464 213 550 417 382 Hop . | . . . . . . . . . . . . . Pick Up 66 | 4 7 . 6 1 14 9 1 8 7 1 6 2 Fast Attach 14 | 6 1 . . . 4 . . . . 1 1 1 Attach 38 | . . . . . 5 2 2 2 2 2 6 17 Detach 6 | . . . . . 1 . . . . . 1 4 Swap 21 | . 2 2 1 1 1 1 2 2 3 1 5 . Drop 53 | . 3 . 2 2 14 7 1 8 7 2 5 2 Fire 50 | . 7 7 . . . . . . . . 7 29 Melee . | . . . . . . . . . . . . . Ram 4 | . . . . . 2 . . . . . . 2 Kick 17 | . . . . . 1 . 3 3 3 . . 7 Crush . | . . . . . . . . . . . . . Escape Stasis . | . . . . . . . . . . . . . Rewire . | . . . . . . . . . . . . . Trap . | . . . . . . . . . . . . . Miscellaneous . | . . . . . . . . . . . . . Route ------- -11/Scrapyard -10/Materials (discovered 3 exits: [*Mat] / *Min x2) -10/Mines -10/Exiles (discovered 2 exits: *Min x2) -9/Mines -8/Materials -7/Factory (discovered 2 exits: [*Fac] / *Sto) -6/Factory -5/Factory -4/Factory (discovered 2 exits: *Res / *Upp) -4/Upper Caves -4/Upper Caves -3/Research History --------- Turn | Location | Event 27 | -11/Scrapyard | Discovered new exit (range 15) 56 | -11/Scrapyard | Entered Materials 63 | -10/Materials | Identified exit to Mines 203 | -10/Materials | Discovered new exit (range 16) 250 | -10/Materials | Entered Mines 309 | -10/Mines | Learned location of Mines (-9) 310 | -10/Mines | Build established: Mutant 433 | -10/Mines | Deemed a non-threat by the Exiles lab entrance 434 | -10/Mines | Discovered new exit (range 5) 437 | -10/Mines | Entered Exiles 448 | -10/Exiles | Discovered new exit (range 15) 458 | -10/Exiles | Met 8R-AWN 471 | -10/Exiles | Met EX-HEX 510 | -10/Exiles | Met EX-DEC 563 | -10/Exiles | Discovered new exit (range 14) 629 | -10/Exiles | Visited The Gauntlet 768 | -10/Exiles | Met EX-BIN 778 | -10/Exiles | Aligned with FarCom system 778 | -10/Exiles | Given EX-Vault access code 825 | -10/Exiles | Opened EX-Vault 846 | -10/Exiles | Warned to stay clear of 0b10 Research branches 968 | -10/Exiles | Found AWS/Autocannon 972 | -10/Exiles | Found Modified TNC 976 | -10/Exiles | Found Deploy-a-Sentry 978 | -10/Exiles | Found Deploy-a-Sentry 980 | -10/Exiles | Found Deploy-a-Sentry 1072 | -10/Exiles | Stole three prototypes: Modified TNC, AWS/Autocannon, Deploy-a-Sentry 1072 | -10/Exiles | Entered Mines 1105 | -9/Mines | Discovered new exit (range 7) 1117 | -9/Mines | Found the Drone Emporium 1118 | -9/Mines | Learned location of Zion (-6) 1122 | -9/Mines | Found Prototype Device 1128 | -9/Mines | Identified exit to Materials 1134 | -9/Mines | Entered Materials 1134 | -8/Materials | Accompanied by 2 allies 1134 | -8/Materials | Evolved 4 slots: Power x1, Propulsion x1, Utility x1, Weapon x1 1139 | -8/Materials | Led the pair of lost Derelicts to an unsafe place 1154 | -8/Materials | Garrison activated, responded to threat 1193 | -8/Materials | Identified Bomb Drone Bay 1277 | -8/Materials | Lost 4 allies 1376 | -8/Materials | Met 7R-MNS 1446 | -8/Materials | Build established: Skirmisher 1843 | -8/Materials | Discovered new exit (range 16) 1875 | -8/Materials | Entered Factory 1875 | -7/Factory | Evolved 2 slots: Utility x2 1876 | -7/Factory | Caught up to 7R-MNS 1876 | -7/Factory | Identified exit to Storage 1877 | -7/Factory | FarCom data flow suspended 2243 | -7/Factory | Garrison activated, responded to threat 2392 | -7/Factory | Build established: Gunner 2630 | -7/Factory | Garrison activated, responded to threat 2690 | -7/Factory | Discovered new exit (range 8) 2702 | -7/Factory | Entered another Factory area 2702 | -6/Factory | Evolved 2 slots: Propulsion x1, Utility x1 2703 | -6/Factory | Caught up to 7R-MNS 2986 | -6/Factory | Allied Derelicts emerged from ambush trap array 2997 | -6/Factory | Build established: Tank 3268 | -6/Factory | Discovered new exit (range 8) 3286 | -6/Factory | Entered another Factory area 3286 | -5/Factory | Evolved 2 slots: Utility x2 3287 | -5/Factory | Caught up to 7R-MNS 4214 | -5/Factory | Discovered new exit (range 16) 4246 | -5/Factory | Entered another Factory area 4246 | -4/Factory | Evolved 2 slots: Utility x2 4247 | -4/Factory | Caught up to 7R-MNS 4280 | -4/Factory | Garrison activated, responded to threat 4380 | -4/Factory | Discovered new exit (range 13) 4479 | -4/Factory | Discovered new exit (range 16) 4626 | -4/Factory | 7R-MNS successfully reached the Upper Caves 4705 | -4/Factory | Entered Upper Caves 4708 | -4/Upper Caves | Build established: Infiltrator-Tank 4733 | -4/Upper Caves | Learned Research trap positions 4735 | -4/Upper Caves | Attracted the attention of an 0b10 checkpoint 5774 | -4/Upper Caves | Discovered new exit (range 11) 5796 | -4/Upper Caves | Entered another Upper Caves area 5978 | -4/Upper Caves | AWS/Autocannon suddenly broke down 5995 | -4/Upper Caves | DAS Turret deployed 6002 | -4/Upper Caves | DAS Turret deployed 6009 | -4/Upper Caves | DAS Turret deployed 6027 | -4/Upper Caves | Lost 3 parts (3u) 6110 | -4/Upper Caves | Learned Research stockpile data 6293 | -4/Upper Caves | Build established: Scavenger-Tank 6410 | -4/Upper Caves | Discovered new exit (range 81) 6688 | -4/Upper Caves | Entered Research 6688 | -3/Research | Evolved 2 slots: Power x1, Weapon x1 6689 | -3/Research | Loaded intel: 72 trap records 7268 | -3/Research | System corruption reached 10% 7276 | -3/Research | Spotted B-86 Titan 7355 | -3/Research | Spotted B-86 Titan 7436 | -3/Research | Core integrity fell below 50% 7458 | -3/Research | Core integrity fell below 20% 7470 | -3/Research | Destroyed by P-80 Master with Gamma Rifle Last Messages --------------- U-05 Engineer repairs door. U-05 Engineer builds a Wall. ALERT: Hostiles spotted, dispatching reinforcements to Terminal R010. S-43 Plague suffers critical hit (Blast). S-43 Plague destroyed. S-43 Plague misfires. System corrupted: Energy discharge (-14). Acquired 2 matter. P-80 Master resets S-43 Plague, system corruption cleaned. G-67 Veteran Plasma Rifle blasted off. Lrg. Storage Unit destroyed. U-05 Engineer destroyed. P-80 Master resets G-67 Veteran, system corruption cleaned. System corrupted: Component data lost. Acquired Imp. Dynamic Insulation System. S-43 Plague destroyed. Slammed into S-43 Plague. Destabilizing: System corrupted (+2). Connecting with DSF Access... System corrupted: Heat flow error (+226). Map ----- +----------------------------------------------------+ | ?????????????????????????????????????????????????? | | ?????????????????????????????????????????????????? | | ?????????????????????????????????????????????????? | | ?????????????????????????????????????????????????? | | ?????????????????????????????????????????????????? | | ?????????????????????????????????????????????????? | | ?????????????????????????????????????????????????? | | ?????????????????????????????????????????????????? | | ?????????????????????????????????????????????????? | | ?????????????????????????????????????????????????? | | ?????????????????????????????????????????????????? | | ?????????????????????????????????????????????????? | | ?????????????????????????????????????????????????? | | ??????????????????????????######?????????????????? | | ??????????????????????????# #?????????????????? | | ??????????????????????????# ##????????????????? | | ??????????????????????????# T#????????????????? | | ??????????????????????????# #????????????????? | | ??????????????????????????# ##????????????????? | | ?????????????############## ##########????????? | | ?????????????# # # !#????????? | | ?????????????# #^ ^ # #????????? | | ?????????????# #^^^^# #????????? | | ?????????????+ # s# % #????????? | | ?????????????# # p + #????????? | | ?????????????# @/ # "T" #????????? | | ?????????????# # o # """ #????????? | | ?????????????# # # #????????? | | ?????????????# # # #????????? | | ?????????????# # ##########????????? | | ?????????????# # # #????????? | | ?????????????# # + #????????? | | ?????????????############## # "" #????????? | | ??????????????????????????# #??""" #????????? | | ??????????????????????????# #???? ??????????? | | ??????????????????????????# #?????? ?????????? | | ??????????????????????????# #?????????????????? | | ??????????????????????????# #?????????????????? | | ??????????????????????????+ % #?????????????????? | | ??????????????????????????# #???######????????? | | ??????????????????????????# #??? #????????? | | ??????????????????????????# #?? #????????? | | ??????????????????????????# =%!#? #????????? | | ??????????????????????????# % |# #????????? | | ??????^???????????????????# =!%# " " #????????? | | ??????????????????????????# + "Y" ?????????? | | ??????????????????????????# # """ ?????????? | | ??????????????????????????# # #????????? | | ????????#?################# #? #????????? | | ????????# # # #??########???????? | +----------------------------------------------------+ Best States ------------- Heat Dissipation 57 Energy Generation 47 Energy Capacity 945 Matter Stores 300 Matter Capacity 300 Sight Range 16 Robot Scan Range 16 Terrain Scan Density 10 Jamming Range 14 EM Shielding 3 Armor Coverage 1050 Propulsion Shielding 33 Evasion (%) 55 Targeting Accuracy 6 Core Analysis 6 Item Schematics ----------------- None Robot Schematics ------------------ None Fabricated ------------ Nothing Repaired ---------- Nothing Alien Tech Used ----------------- None Achievements -------------- Dangerous Findings No Signal Tank Challenges ------------ None Game ------ Seed StormHellfireHammer Manual? 0 Play Time 01:35:48 Cumulative 33.7 hours Start 2025.07.05 @ 14:26:45 End 2025.07.05 @ 16:04:38 Sessions 1 Manual Loads 0 Difficulty Rogue Special Mode None Game No. 25 Rogue 22 Adventurer 1 Explorer 2 Win Type - Total 0 Types 0/0/0/0/0/0/0/0/0/0 Lore% 18 Gallery% 26 Achievement% 24 Wizard Run 0 Options --------- Layout 0 ASCII 0 Keyboard 0 Movement Mouse Keybinds 0 Fullscreen 2 Font 24/Smallcaps Map View 76x50 Zoom Use 0% Tactical HUD 0 Map Filters NONE Filters NONE Steam 1 RUN: 4a266344-3292-441a-9daa-aa1bfb792b18